fUSD/lending_fUSD_20251221
["ID","MTS","AMOUNT","RATE_DAILY","PERIOD"]
[399391911,1766326238104,-1281.03308487,0.00011987,2]
[399391912,1766326238114,-29867.82028632,0.00012063,2]
[399391913,1766326238124,-32604.71136386,0.00012066,2]
[399391914,1766326238134,-30246.06312534,0.00012066,2]
[399391915,1766326238144,-33926.13,0.00012087,2]
[399391917,1766326238154,-405.18,0.00012087,2]
[399391919,1766326238164,-1194.52,0.00012087,2]
[399391921,1766326238174,-999.99,0.00012087,2]
[399391922,1766326238184,-9999.99,0.00012087,2]
[399391925,1766326238194,-150.99,0.00012087,2]
[399391926,1766326238204,-4999.99,0.00012087,2]
[399391927,1766326238218,-150.99,0.00012087,2]
[399391928,1766326238228,-9999.99,0.00012087,2]
[399391929,1766326238238,-9999.99,0.00012087,2]
[399391930,1766326238247,-9999.99,0.00012087,2]
[399391931,1766326238259,-299.99,0.00012087,2]
[399391932,1766326238269,-9999.99,0.00012087,2]
[399391933,1766326238278,-10414.6,0.00012087,2]
[399391934,1766326238288,-499.99,0.00012087,2]
[399391935,1766326238299,-500.0,0.0001215,2]
[399391936,1766326238308,-2257.27,0.0001215,2]
[399391937,1766326238318,-442.29213636,0.00012158,2]
[399391938,1766326238328,-500.0,0.00012424,2]
[399391939,1766326238337,-2257.27,0.00012424,2]
[399391940,1766326238347,-15387.01,0.00012519,2]
[399391941,1766326238357,-500.0,0.00012698,2]
[399391942,1766326238367,-2257.27,0.00012698,2]
[399391943,1766326238377,-32604.71136386,0.00012757,2]
[399391944,1766326238386,-30246.06312534,0.00012757,2]
[399391945,1766326238396,-587.0,0.00012906,2]
[399391946,1766326238406,-257.25,0.00012921,2]
[399391947,1766326238416,-251.91,0.00012921,2]
[399391948,1766326238426,-2351.0,0.00012924,2]
[399391949,1766326238437,-289.67,0.00012939,2]
[399391950,1766326238447,-433.0,0.0001294,2]
[399391951,1766326238457,-500.0,0.00012972,2]
[399391952,1766326238468,-2257.27,0.00012972,2]
[399391953,1766326238477,-151.0,0.00013241,2]
[399391954,1766326238488,-151.0,0.00013241,2]
[399391955,1766326238498,-151.0,0.00013241,2]
[399391956,1766326238509,-500.0,0.00013246,2]
[399391957,1766326238520,-2257.27,0.00013246,2]
[399391958,1766326238530,-163.12595914,0.00013273,2]
[399391959,1766326238540,-500.0,0.00013273,2]
[399391960,1766326238549,-172.62322663,0.00013273,2]
[399391961,1766326238559,-500.0,0.00013273,2]
[399391962,1766326238568,-224.07561459,0.00013273,2]
[399391963,1766326238578,-501.13880069,0.00013273,2]
[399391964,1766326238587,-235.5477362,0.00013273,2]
[399391965,1766326238596,-172.78810174,0.00013273,2]
[399391966,1766326238606,-500.0,0.00013273,2]
[399391967,1766326238616,-176.68955298,0.00013273,2]
[399391968,1766326238626,-163.74041745,0.00013273,2]
[399391969,1766326238635,-500.0,0.00013273,2]
[399391970,1766326238645,-500.0,0.00013273,2]
[399391971,1766326238655,-500.0,0.00013273,2]
[399391972,1766326238664,-500.0,0.00013273,2]
[399391973,1766326238677,-535.80488435,0.00013273,2]
[399391974,1766326238686,-500.0,0.00013273,2]
[399391975,1766326238696,-500.28275711,0.00013273,2]
[399391976,1766326238705,-165.55250469,0.00013273,2]
[399391977,1766326238715,-223.24574971,0.00013273,2]
[399391978,1766326238724,-500.0,0.00013273,2]
[399391979,1766326238733,-500.0,0.00013273,2]
[399391980,1766326238743,-500.0,0.00013273,2]
[399391981,1766326238754,-179.52644703,0.00013273,2]
[399391983,1766326238765,-500.0,0.00013273,2]
[399391984,1766326238775,-500.0,0.00013273,2]
[399391985,1766326238786,-500.0,0.00013273,2]
[399391986,1766326238795,-276.49556074,0.00013273,2]
[399391987,1766326238806,-174.7668322,0.00013273,2]
[399391988,1766326238815,-500.0,0.00013273,2]
[399391989,1766326238825,-500.0,0.00013273,2]
[399391990,1766326238835,-500.0,0.00013273,2]
[399391991,1766326238845,-500.0,0.00013273,2]
[399391992,1766326238855,-165.81830667,0.00013273,2]
[399391993,1766326238866,-162.88863399,0.00013273,2]
[399391994,1766326238876,-500.0,0.00013273,2]
[399391995,1766326238886,-165.33365869,0.00013273,2]
[399391996,1766326238895,-216.30072536,0.00013273,2]
[399391997,1766326238906,-500.0,0.00013273,2]
[399391998,1766326238916,-168.62041939,0.00013273,2]
[399391999,1766326238926,-201.68060624,0.00013273,2]
[399392000,1766326238936,-500.0,0.00013273,2]
[399392001,1766326238946,-500.0,0.00013273,2]
[399392002,1766326238956,-500.0,0.00013273,2]
[399392003,1766326238967,-165.47156837,0.00013273,2]
[399392004,1766326238977,-500.0,0.00013273,2]
[399392005,1766326238987,-500.0,0.00013273,2]
[399392006,1766326238999,-162.06342056,0.00013273,2]
[399392007,1766326239009,-500.0,0.00013273,2]
[399392008,1766326239019,-500.0,0.00013273,2]
[399392009,1766326239029,-500.0,0.00013273,2]
[399392010,1766326239039,-500.0,0.00013273,2]
[399392011,1766326239049,-160.24966058,0.00013273,2]
[399392012,1766326239058,-500.0,0.00013273,2]
[399392013,1766326239068,-515.90612576,0.00013273,2]
[399392014,1766326239077,-500.0,0.00013273,2]
[399392015,1766326239088,-32604.71136386,0.00013447,2]
[399392016,1766326239098,-30246.06312534,0.00013447,2]
[399392017,1766326239108,-2257.27,0.0001352,2]
[399392018,1766326239118,-500.0,0.00013698,2]
[399392019,1766326239127,-500.0,0.00013698,2]
[399392020,1766326239137,-500.0,0.00013698,2]
[399392021,1766326239147,-510.69307451,0.00013698,2]
[399392022,1766326239156,-500.0,0.00013698,2]
[399392023,1766326239166,-500.0,0.00013698,2]
[399392024,1766326239176,-500.0,0.00013698,2]
[399392025,1766326239185,-500.0,0.00013698,2]
[399392026,1766326239195,-500.0,0.00013698,2]
[399392027,1766326239206,-500.0,0.00013698,2]
[399392028,1766326239216,-500.0,0.00013698,2]
[399392029,1766326239232,-500.0,0.00013698,2]
[399392030,1766326239241,-500.0,0.00013698,2]
[399392031,1766326239251,-500.0,0.00013698,2]
[399392032,1766326239261,-500.0,0.00013698,2]
[399392033,1766326239270,-500.0,0.00013698,2]
[399392034,1766326239280,-500.0,0.00013698,2]
[399392035,1766326239290,-500.0,0.00013698,2]
[399392036,1766326239300,-500.0,0.00013698,2]
[399392037,1766326239310,-500.0,0.00013698,2]
[399392038,1766326239319,-500.0,0.00013698,2]
[399392039,1766326239328,-500.0,0.00013698,2]
[399392040,1766326239338,-500.0,0.00013698,2]
[399392041,1766326239347,-500.0,0.00013698,2]
[399392042,1766326239357,-500.0,0.00013698,2]
[399392043,1766326239366,-500.0,0.00013698,2]
[399392044,1766326239376,-500.0,0.00013698,2]
[399392045,1766326239385,-500.0,0.00013698,2]
[399392046,1766326239395,-500.0,0.00013698,2]
[399392047,1766326239404,-511.95166241,0.00013698,2]
[399392048,1766326239416,-500.0,0.00013698,2]
[399392049,1766326239425,-500.0,0.00013698,2]
[399392050,1766326239437,-500.0,0.00013698,2]
[399392051,1766326239447,-500.0,0.00013698,2]
[399392052,1766326239457,-500.0,0.00013698,2]
[399392053,1766326239467,-500.0,0.00013698,2]
[399392054,1766326239476,-500.0,0.00013698,2]
[399392055,1766326239485,-500.0,0.00013698,2]
[399392056,1766326239495,-500.0,0.00013698,2]
[399392057,1766326239505,-500.0,0.00013698,2]
[399392058,1766326239514,-500.0,0.00013698,2]
[399392059,1766326239525,-500.0,0.00013698,2]
[399392060,1766326239535,-500.0,0.00013698,2]
[399392061,1766326239544,-500.0,0.00013698,2]
[399392062,1766326239553,-344.15406571,0.00013698,2]
[399392063,1766326239562,-500.0,0.00013698,2]
[399392064,1766326239571,-500.0,0.00013698,2]
[399392065,1766326239580,-500.0,0.00013698,2]
[399392066,1766326239590,-500.0,0.00013698,2]
[399392067,1766326239599,-500.0,0.00013698,2]
[399392069,1766326239609,-500.0,0.00013698,2]
[399392070,1766326239619,-500.0,0.00013698,2]
[399392071,1766326239628,-500.0,0.00013698,2]
[399392072,1766326239639,-500.0,0.00013698,2]
[399392073,1766326239648,-500.0,0.00013698,2]
[399392074,1766326239658,-500.0,0.00013698,2]
[399392075,1766326239667,-500.0,0.00013698,2]
[399392076,1766326239676,-500.0,0.00013698,2]
[399392077,1766326239686,-567.20870026,0.00013698,2]
[399392078,1766326239696,-500.0,0.00013698,2]
[399392079,1766326239706,-500.0,0.00013698,2]
[399392080,1766326239715,-732.91,0.00013698,2]
[399392081,1766326239724,-732.91,0.00013698,2]
[399392082,1766326239734,-732.91,0.00013698,2]
[399392084,1766326239743,-732.91,0.00013698,2]
[399392086,1766326239754,-500.0,0.00013698,2]
[399392088,1766326239763,-500.0,0.00013698,2]
[399392090,1766326239772,-500.0,0.00013698,2]
[399392091,1766326239781,-500.0,0.00013698,2]
[399392092,1766326239791,-166.66,0.00013699,2]
[399392093,1766326239877,-13733.1,0.00013699,2]
[399392094,1766326239886,-196.43,0.00013699,2]
[399392095,1766326239895,-200.0,0.00013699,2]
[399392096,1766326239905,-500.0,0.00013699,2]
[399392097,1766326239916,-500.0,0.00013699,2]
[399392098,1766326239924,-500.0,0.00013699,2]
[399392099,1766326239935,-500.0,0.00013699,2]
[399392100,1766326239943,-500.0,0.00013699,2]
[399392101,1766326239953,-500.0,0.00013699,2]
[399392102,1766326239962,-500.0,0.00013699,2]
[399392103,1766326239971,-500.0,0.00013699,2]
[399392104,1766326239980,-500.0,0.00013699,2]
[399392105,1766326239990,-500.0,0.00013699,2]
[399392106,1766326239999,-500.0,0.00013699,2]
[399392107,1766326240008,-500.0,0.00013699,2]
[399392108,1766326240017,-500.0,0.00013699,2]
[399392109,1766326240027,-500.0,0.00013699,2]
[399392110,1766326240036,-500.0,0.00013699,2]
[399392111,1766326240045,-500.0,0.00013699,2]
[399392112,1766326240055,-500.0,0.00013699,2]
[399392113,1766326240064,-500.0,0.00013699,2]
[399392114,1766326240073,-500.0,0.00013699,2]
[399392115,1766326240082,-624.80550231,0.00013699,2]
[399392116,1766326240091,-500.0,0.00013699,2]
[399392117,1766326240100,-500.0,0.00013699,2]
[399392118,1766326240110,-500.0,0.00013699,2]
[399392119,1766326240119,-500.0,0.00013699,2]
[399392120,1766326240128,-500.0,0.00013699,2]
[399392121,1766326240137,-500.0,0.00013699,2]
[399392122,1766326240146,-500.0,0.00013699,2]
[399392123,1766326240156,-500.0,0.00013699,2]
[399392124,1766326240165,-500.0,0.00013699,2]
[399392125,1766326240177,-500.0,0.00013699,2]
[399392126,1766326240186,-500.0,0.00013699,2]
[399392127,1766326240196,-500.0,0.00013699,2]
[399392128,1766326240205,-500.0,0.00013699,2]
[399392129,1766326240220,-500.0,0.00013699,2]
[399392130,1766326240230,-500.0,0.00013699,2]
[399392131,1766326240239,-500.0,0.00013699,2]
[399392132,1766326240250,-500.0,0.00013699,2]
[399392133,1766326240259,-500.0,0.00013699,2]
[399392134,1766326240268,-500.0,0.00013699,2]
[399392135,1766326240279,-500.0,0.00013699,2]
[399392136,1766326240288,-500.0,0.00013699,2]
[399392137,1766326240298,-500.0,0.00013699,2]
[399392138,1766326240307,-500.0,0.00013699,2]
[399392139,1766326240317,-500.0,0.00013699,2]
[399392140,1766326240326,-624.65075582,0.00013699,2]
[399392141,1766326240335,-500.0,0.00013699,2]
[399392142,1766326240345,-500.0,0.00013699,2]
[399392143,1766326240354,-500.0,0.00013699,2]
[399392144,1766326240363,-500.0,0.00013699,2]
[399392145,1766326240373,-500.0,0.00013699,2]
[399392146,1766326240383,-500.0,0.00013699,2]
[399392147,1766326240395,-500.0,0.00013699,2]
[399392148,1766326240404,-500.0,0.00013699,2]
[399392149,1766326240413,-2257.27,0.00013794,2]
[399392150,1766326240423,-500.0,0.0001382,2]
[399392151,1766326240432,-500.0,0.0001382,2]
[399392152,1766326240441,-500.0,0.0001382,2]
[399392153,1766326240452,-500.0,0.0001382,2]
[399392154,1766326240461,-500.0,0.0001382,2]
[399392155,1766326240471,-500.0,0.0001382,2]
[399392156,1766326240480,-732.91,0.0001382,2]
[399392157,1766326240490,-500.0,0.0001382,2]
[399392158,1766326240499,-208.16009032,0.00013821,2]
[399392159,1766326240508,-501.0380524,0.00013821,2]
[399392160,1766326240517,-500.84654228,0.00013821,2]
[399392161,1766326240527,-535.22474582,0.00013821,2]
[399392162,1766326240535,-1000.0,0.00013821,2]
[399392163,1766326240545,-1000.0,0.00013821,2]
[399392164,1766326240554,-1001.62490087,0.00013821,2]
[399392165,1766326240563,-1000.0,0.00013821,2]
[399392166,1766326240572,-1001.10835573,0.00013821,2]
[399392167,1766326240581,-572.75082077,0.00013821,2]
[399392168,1766326240591,-627.6344399,0.00013821,2]
[399392169,1766326240600,-1000.0,0.00013821,2]
[399392170,1766326240609,-1000.0,0.00013821,2]
[399392171,1766326240619,-1000.0,0.00013821,2]
[399392172,1766326240629,-1000.0,0.00013821,2]
[399392173,1766326240638,-1000.0,0.00013821,2]
[399392174,1766326240647,-1000.0,0.00013821,2]
[399392175,1766326240656,-1000.0,0.00013821,2]
[399392176,1766326240665,-484.06013596,0.00013821,2]
[399392177,1766326240674,-514.63903632,0.00013821,2]
[399392178,1766326240683,-789.33467407,0.00013821,2]
[399392179,1766326240692,-1000.0,0.00013821,2]
[399392180,1766326240701,-1000.0,0.00013821,2]
[399392181,1766326240711,-1000.0,0.00013821,2]
[399392182,1766326240720,-235.55154497,0.00013821,2]
[399392183,1766326240729,-1000.0,0.00013821,2]
[399392184,1766326240739,-1000.0,0.00013821,2]
[399392185,1766326240749,-594.78120498,0.00013821,2]
[399392186,1766326240758,-1000.0,0.00013821,2]
[399392187,1766326240767,-453.53849539,0.00013821,2]
[399392188,1766326240777,-1000.0,0.00013821,2]
[399392189,1766326240787,-166.66,0.00013836,2]
[399392190,1766326240796,-166.66,0.00013973,2]
[399392191,1766326240805,-2257.27,0.00014068,2]
[399392192,1766326240814,-166.66,0.0001411,2]
[399392193,1766326240824,-32604.71136386,0.00014138,2]
[399392194,1766326240833,-30246.06312534,0.00014138,2]
[399392195,1766326240842,-151.0,0.00014185,2]
[399392196,1766326240852,-200.0,0.00014185,2]
[399392197,1766326240861,-207.4,0.00014185,2]
[399392198,1766326240870,-215.0738,0.00014185,2]
[399392199,1766326240879,-223.0315306,0.00014185,2]
[399392200,1766326240889,-231.28369723,0.00014185,2]
[399392201,1766326240898,-239.84119403,0.00014185,2]
[399392202,1766326240907,-248.71531821,0.00014185,2]
[399392203,1766326240916,-257.91778498,0.00014185,2]
[399392204,1766326240925,-267.46074303,0.00014185,2]
[399392205,1766326240935,-300.0,0.00014185,2]
[399392206,1766326240944,-823.0,0.00014187,2]
[399392207,1766326240954,-736.0,0.0001419,2]
[399392208,1766326240963,-3292.0,0.00014216,2]
[399392209,1766326240972,-166.66,0.00014247,2]
[399392210,1766326240981,-2257.27,0.00014342,2]
[399392211,1766326240990,-1500.0,0.00014368,2]
[399392213,1766326240999,-1500.0,0.00014368,2]
[399392215,1766326241008,-1500.0,0.00014368,2]
[399392216,1766326241018,-503.74441146,0.00014368,2]
[399392217,1766326241027,-1500.0,0.00014368,2]
[399392218,1766326241036,-1500.0,0.00014368,2]
[399392219,1766326241045,-1500.0,0.00014368,2]
[399392220,1766326241054,-1500.0,0.00014368,2]
[399392221,1766326241063,-1500.0,0.00014368,2]
[399392222,1766326241072,-1500.0,0.00014368,2]
[399392223,1766326241082,-1504.443568,0.00014368,2]
[399392224,1766326241091,-1501.58945381,0.00014368,2]
[399392225,1766326241099,-1500.0,0.00014368,2]
[399392226,1766326241108,-644.26340267,0.00014368,2]
[399392227,1766326241117,-366.15226393,0.00014368,2]
[399392228,1766326241127,-1211.67995912,0.00014368,2]
[399392229,1766326241136,-1500.0,0.00014368,2]
[399392230,1766326241145,-166.66,0.00014384,2]
[399392231,1766326241155,-2257.27,0.00014616,2]
[399392232,1766326241165,-10738.16,0.00014676,2]
[399392233,1766326241175,-1158.44043386,0.00014716,2]
[399392234,1766326241185,-6983.0,0.00014794,2]
[399392235,1766326241195,-32604.71136386,0.00014828,2]
[399392236,1766326241204,-30246.06312534,0.00014828,2]
[399392237,1766326241215,-2257.27,0.0001489,2]
[399392238,1766326241229,-2000.0,0.00014916,2]
[399392239,1766326241238,-1834.49283525,0.00014916,2]
[399392240,1766326241247,-2000.0,0.00014916,2]
[399392241,1766326241258,-2000.0,0.00014916,2]
[399392242,1766326241267,-1138.30499273,0.00014916,2]
[399392243,1766326241276,-2000.0,0.00014916,2]
[399392244,1766326241285,-2000.0,0.00014916,2]
[399392245,1766326241296,-503.75804982,0.00014916,2]
[399392246,1766326241305,-502.34827947,0.00014916,2]
[399392247,1766326241314,-508.91462185,0.00014916,2]
[399392248,1766326241323,-352.90599621,0.0001504,2]
[399392249,1766326241332,-500.0,0.00015164,2]
[399392250,1766326241341,-2257.27,0.00015164,2]
[399392251,1766326241351,-150.0,0.00015288,2]
[399392252,1766326241359,-150.0,0.00015288,2]
[399392253,1766326241368,-150.0,0.00015288,2]
[399392254,1766326241377,-151.28381653,0.00015288,2]
[399392255,1766326241386,-150.0,0.00015288,2]
[399392256,1766326241395,-150.0,0.00015288,2]
[399392257,1766326241404,-150.0,0.00015288,2]
[399392258,1766326241413,-150.0,0.00015288,2]
[399392259,1766326241423,-150.0,0.00015288,2]
[399392260,1766326241433,-150.0,0.00015288,2]
[399392261,1766326241442,-150.0,0.00015288,2]
[399392262,1766326241451,-150.0,0.00015288,2]
[399392263,1766326241460,-150.0,0.00015288,2]
[399392264,1766326241470,-150.0,0.00015288,2]
[399392265,1766326241479,-150.89972091,0.00015288,2]
[399392266,1766326241488,-150.0,0.00015324,2]
[399392267,1766326241497,-150.0,0.00015336,2]
[399392268,1766326241507,-150.0,0.00015358,2]
[399392269,1766326241516,-150.0,0.0001536,2]
[399392270,1766326241525,-150.0,0.00015369,2]
[399392271,1766326241534,-150.0,0.00015373,2]
[399392272,1766326241543,-150.0,0.00015385,2]
[399392273,1766326241553,-1985.60848995,0.00015388,2]
[399392274,1766326241562,-150.0,0.00015396,2]
[399392275,1766326241572,-150.0,0.00015429,2]
[399392276,1766326241581,-150.0,0.00015432,2]
[399392277,1766326241590,-150.0,0.00015433,2]
[399392278,1766326241599,-2257.27,0.00015438,2]
[399392279,1766326241608,-150.0,0.00015449,2]
[399392280,1766326241618,-150.0,0.00015458,2]
[399392281,1766326241627,-2500.0,0.00015464,2]
[399392282,1766326241636,-2500.0,0.00015464,2]
[399392283,1766326241645,-2500.0,0.00015464,2]
[399392284,1766326241654,-2500.0,0.00015464,2]
[399392285,1766326241663,-2500.0,0.00015464,2]
[399392286,1766326241672,-150.0,0.00015468,2]
[399392287,1766326241681,-150.0,0.00015482,2]
[399392288,1766326241690,-150.0,0.000155,2]
[399392289,1766326241699,-150.0,0.00015505,2]
[399392290,1766326241709,-32604.71136386,0.00015519,2]
[399392291,1766326241729,-30246.06312534,0.00015519,2]
[399392292,1766326241738,-150.0,0.0001553,2]
[399392293,1766326241748,-150.0,0.0001553,2]
[399392294,1766326241759,-150.0,0.0001553,2]
[399392295,1766326241768,-150.0,0.00015541,2]
[399392296,1766326241777,-150.0,0.00015542,2]
[399392297,1766326241787,-1252.0,0.00015548,2]
[399392298,1766326241796,-277.35679052,0.00015554,2]
[399392299,1766326241806,-311.1,0.00015554,2]
[399392300,1766326241815,-150.0,0.00015571,2]
[399392301,1766326241825,-150.0,0.00015571,2]
[399392302,1766326241835,-150.0,0.00015571,2]
[399392303,1766326241850,-150.0,0.00015577,2]
[399392304,1766326241859,-150.0,0.00015579,2]
[399392305,1766326241869,-150.0,0.00015611,2]
[399392306,1766326241879,-150.0,0.00015613,2]
[399392307,1766326241892,-150.0,0.00015627,2]
[399392308,1766326241906,-150.0,0.00015627,2]
[399392309,1766326241915,-4609.0,0.00015638,2]
[399392310,1766326241925,-150.0,0.00015642,2]
[399392311,1766326241935,-150.0,0.00015649,2]
[399392312,1766326241946,-150.0,0.00015676,2]
[399392313,1766326241956,-150.0,0.00015685,2]
[399392314,1766326241965,-150.0,0.00015692,2]
[399392315,1766326241975,-2257.27,0.00015712,2]
[399392316,1766326241984,-150.0,0.00015712,2]
[399392317,1766326241993,-150.0,0.00015712,2]
[399392318,1766326242004,-150.0,0.00015712,2]
[399392319,1766326242014,-150.0,0.00015721,2]
[399392320,1766326242024,-150.0,0.00015724,2]
[399392321,1766326242034,-150.0,0.00015758,2]
[399392322,1766326242044,-150.0,0.00015773,2]
[399392323,1766326242053,-150.0,0.00015773,2]
[399392324,1766326242063,-150.0,0.00015773,2]
[399392325,1766326242073,-150.0,0.00015783,2]
[399392326,1766326242083,-150.0,0.00015794,2]
[399392327,1766326242093,-150.0,0.00015797,2]
[399392328,1766326242103,-150.0,0.00015822,2]
[399392329,1766326242112,-150.0,0.0001583,2]
[399392330,1766326242122,-251.91,0.00015847,2]
[399392331,1766326242132,-150.0,0.00015854,2]
[399392332,1766326242144,-150.0,0.00015854,2]
[399392333,1766326242154,-150.0,0.00015854,2]
[399392334,1766326242164,-150.0,0.00015854,2]
[399392335,1766326242173,-257.25,0.00015861,2]
[399392336,1766326242184,-150.0,0.00015866,2]
[399392337,1766326242194,-150.0,0.0001587,2]
[399392338,1766326242204,-10000.0,0.00015873,2]
[399392339,1766326242214,-150.0,0.00015882,2]
[399392340,1766326242226,-289.67,0.00015902,2]
[399392341,1766326242237,-150.0,0.00015902,2]
[399392342,1766326242247,-150.0,0.00015919,2]
[399392343,1766326242261,-150.0,0.00015925,2]
[399392344,1766326242271,-150.0,0.00015935,2]
[399392345,1766326242281,-150.0,0.00015938,2]
[399392346,1766326242291,-150.0,0.00015967,2]
[399392347,1766326242302,-150.0,0.00015967,2]
[399392348,1766326242311,-500.0,0.00015973,2]
[399392349,1766326242321,-162.2682575,0.00015973,2]
[399392350,1766326242330,-500.0,0.00015973,2]
[399392351,1766326242340,-500.0,0.00015973,2]
[399392352,1766326242350,-518.86476464,0.00015973,2]
[399392353,1766326242359,-334.60508476,0.00015973,2]
[399392354,1766326242368,-500.51801303,0.00015973,2]
[399392355,1766326242378,-590.29428357,0.00015973,2]
[399392356,1766326242387,-501.45767981,0.00015973,2]
[399392357,1766326242396,-500.4654119,0.00015973,2]
[399392358,1766326242407,-500.0,0.00015973,2]
[399392359,1766326242417,-500.0,0.00015973,2]
[399392360,1766326242426,-500.0,0.00015973,2]
[399392361,1766326242436,-162.38378184,0.00015973,2]
[399392362,1766326242445,-500.56420784,0.00015973,2]
[399392363,1766326242455,-500.81615011,0.00015973,2]
[399392364,1766326242464,-500.0,0.00015973,2]
[399392368,1766326242475,-500.30670484,0.00015973,2]
[399392370,1766326242484,-269.64224637,0.00015973,2]
[399392371,1766326242493,-160.18740865,0.00015973,2]
[399392373,1766326242504,-500.0,0.00015973,2]
[399392375,1766326242513,-500.0,0.00015973,2]
[399392376,1766326242523,-500.0,0.00015973,2]
[399392377,1766326242533,-500.0,0.00015973,2]
[399392378,1766326242543,-500.0,0.00015973,2]
[399392379,1766326242553,-500.0,0.00015973,2]
[399392380,1766326242563,-500.0,0.00015973,2]
[399392381,1766326242572,-500.0,0.00015973,2]
[399392382,1766326242582,-330.74959628,0.00015973,2]
[399392383,1766326242592,-500.0,0.00015973,2]
[399392384,1766326242601,-500.0,0.00015973,2]
[399392385,1766326242611,-500.0,0.00015973,2]
[399392386,1766326242620,-500.0,0.00015973,2]
[399392387,1766326242630,-500.0,0.00015973,2]
[399392388,1766326242641,-160.18648371,0.00015973,2]
[399392389,1766326242650,-160.18740865,0.00015973,2]
[399392390,1766326242659,-160.176,0.00015973,2]
[399392391,1766326242670,-177.38138354,0.00015973,2]
[399392392,1766326242680,-160.18740865,0.00015973,2]
[399392393,1766326242689,-160.18740865,0.00015973,2]
[399392394,1766326242699,-160.18741035,0.00015973,2]
[399392395,1766326242708,-160.18546537,0.00015973,2]
[399392396,1766326242719,-500.77244015,0.00015973,2]
[399392397,1766326242729,-500.0,0.00015973,2]
[399392398,1766326242739,-500.0,0.00015973,2]
[399392399,1766326242748,-500.0,0.00015973,2]
[399392400,1766326242758,-570.29356194,0.00015973,2]
[399392401,1766326242768,-160.18740865,0.00015973,2]
[399392402,1766326242778,-150.17482874,0.00015973,2]
[399392403,1766326242787,-452.23233136,0.00015973,2]
[399392404,1766326242797,-500.0,0.00015973,2]
[399392405,1766326242806,-555.97636192,0.00015973,2]
[399392406,1766326242815,-160.18818998,0.00015973,2]
[399392407,1766326242825,-500.0,0.00015973,2]
[399392408,1766326242835,-500.0,0.00015973,2]
[399392409,1766326242844,-500.0,0.00015973,2]
[399392410,1766326242854,-500.0,0.00015973,2]
[399392411,1766326242863,-500.0,0.00015973,2]
[399392412,1766326242872,-500.0,0.00015973,2]
[399392413,1766326242881,-530.05316157,0.00015973,2]
[399392414,1766326242891,-500.0,0.00015973,2]
[399392415,1766326242900,-168.18676432,0.00015973,2]
[399392416,1766326242910,-333.50168371,0.00015973,2]
[399392417,1766326242919,-500.0,0.00015973,2]
[399392418,1766326242929,-500.52093975,0.00015973,2]
[399392419,1766326242939,-500.47443561,0.00015973,2]
[399392420,1766326242949,-426.64941198,0.00015973,2]
[399392421,1766326242958,-500.65341776,0.00015973,2]
[399392422,1766326242968,-160.18819168,0.00015973,2]
[399392423,1766326242977,-160.18741035,0.00015973,2]
[399392424,1766326242987,-160.18740865,0.00015973,2]
[399392425,1766326242997,-160.18741035,0.00015973,2]
[399392426,1766326243008,-160.18477965,0.00015973,2]
[399392427,1766326243018,-500.67170266,0.00015973,2]
[399392428,1766326243028,-160.18740865,0.00015973,2]
[399392429,1766326243037,-160.18648397,0.00015973,2]